fUSD/lending_fUSD_20250423
["ID","MTS","AMOUNT","RATE_DAILY","PERIOD"]
[358745245,1745409057702,-500.0,0.00046675,2]
[358745246,1745409057712,-500.0,0.00046675,2]
[358745247,1745409057722,-600.0,0.00046675,2]
[358745248,1745409057732,-500.0,0.00046675,5]
[358745249,1745409057743,-500.0,0.00046675,5]
[358745250,1745409057753,-500.0,0.00046675,5]
[358745251,1745409057763,-500.0,0.00046675,5]
[358745252,1745409057772,-500.0,0.00046675,5]
[358745253,1745409057782,-500.0,0.00046675,5]
[358745254,1745409057792,-500.0,0.00046675,5]
[358745255,1745409057803,-500.0,0.00046675,5]
[358745256,1745409057813,-400.0,0.00046675,5]
[358745257,1745409057824,-500.0,0.00046675,7]
[358745258,1745409057834,-500.0,0.00046675,7]
[358745259,1745409057845,-232.01145489,0.00046675,7]
[358745260,1745409057859,-516.05259795,0.00046675,3]
[358745261,1745409057869,-500.0,0.00046675,8]
[358745262,1745409057880,-500.0,0.00046675,8]
[358745263,1745409057891,-500.0,0.00046675,8]
[358745264,1745409057902,-500.0,0.00046675,8]
[358745265,1745409057912,-500.0,0.00046675,8]
[358745266,1745409057923,-500.0,0.00046675,8]
[358745267,1745409057935,-500.0,0.00046675,8]
[358745268,1745409057946,-500.0,0.00046675,8]
[358745269,1745409057957,-500.0,0.00046675,8]
[358745270,1745409057967,-500.0,0.00046675,8]
[358745271,1745409057978,-500.0,0.00046675,8]
[358745272,1745409057988,-500.0,0.00046675,8]
[358745273,1745409057997,-500.0,0.00046675,8]
[358745274,1745409058008,-443.02324068,0.00046675,8]
[358745275,1745409058018,-9206.35864553,0.00046675,2]
[358745276,1745409059072,-4254.57135447,0.00046675,2]
[358745277,1745409059082,-4892.90838445,0.00046675,2]
[358745278,1745409059100,-565.32665385,0.000274,2]
[358745279,1745409059111,-536.67334615,0.000274,2]
[358745280,1745409059121,-137.42865208,0.00046675,2]
[358745281,1745409059133,-336.0581857,0.00046675,2]
[358745282,1745409059144,-8094.53477777,0.00046675,2]
[358745283,1745409059154,-13460.93,0.00046675,2]
[358745284,1745409059164,-13460.93,0.00046675,2]
[358745285,1745409059174,-13460.93,0.00046675,2]
[358745286,1745409059185,-13460.93,0.00046675,2]
[358745287,1745409059195,-13460.93,0.00046675,2]
[358745288,1745409059205,-13460.93,0.00046675,2]
[358745289,1745409059215,-13460.93,0.00046675,2]
[358745290,1745409059225,-13460.93,0.00046675,2]
[358745291,1745409059236,-13460.93,0.00046675,2]
[358745292,1745409059246,-13460.93,0.00046675,2]
[358745293,1745409059256,-13460.93,0.00046675,2]
[358745294,1745409059266,-13460.93,0.00046675,2]
[358745295,1745409059276,-13460.93,0.00046675,2]
[358745296,1745409059285,-13460.93,0.00046675,2]
[358745297,1745409059295,-13460.93,0.00046675,2]
[358745298,1745409059305,-13460.93,0.00046675,2]
[358745299,1745409059315,-13460.93,0.00046675,2]
[358745300,1745409059324,-259.76388139,0.00046675,2]
[358745301,1745409059335,-13460.93,0.00046675,2]
[358745302,1745409059344,-13460.93,0.00046675,2]
[358745303,1745409059355,-13460.93,0.00046675,2]
[358745304,1745409059365,-13460.93,0.00046675,2]
[358745305,1745409059374,-6200.70644297,0.00046675,2]
[358745306,1745409059417,-7260.45672374,0.00046675,2]
[358745307,1745409059427,-2081.20686575,0.00046675,7]
[358745308,1745409059563,-295.99920458,0.00032795,5]
[358745309,1745409059694,-303.00079542,0.00032795,5]
[358745310,1745409059704,-1102.78563424,0.000329,2]
[358745311,1745409059714,-173.37231893,0.00033362,2]
[358745312,1745409059736,-958.62768107,0.00033362,2]
[358745313,1745409059746,-162.17231893,0.00036362,2]
[358745314,1745409059759,-969.82768107,0.00036362,2]
[358745315,1745409059768,-832.87231895,0.00039362,2]
[358745316,1745409059780,-299.12768105,0.00039362,2]
[358745317,1745409059791,-700.0,0.00043836,16]
[358745318,1745409059801,-339.77672673,0.00043836,16]
[358745319,1745409059814,-360.22327327,0.00043836,16]
[358745320,1745409059823,-93.88872675,0.00043836,16]
[358745327,1745409107099,199.61,0.00043836,30]
[358745328,1745409108583,497.91,0.0004383,30]
[358745329,1745409120324,500.0,0.00042913,60]
[358745337,1745409172011,500.0,0.00042913,60]
[358745343,1745409185328,6944.35,0.0004383,30]
[358745344,1745409207230,1000.0,0.0004383,30]
[358745360,1745409462160,578.128,0.00043836,30]
[358745361,1745409474128,150.0,0.00041095,120]
[358745362,1745409474336,226.483785,0.00042465,120]
[358745366,1745409567221,1599.5150717,0.00043836,120]
[358745383,1745409664722,3996.35,0.00038929,30]
[358745392,1745409769071,209.47,0.0004135,30]
[358745394,1745409814064,193.44,0.00043836,30]
[358745395,1745409829425,1995.0,0.0004383,30]
[358745396,1745409833008,1072.2,0.00043836,30]
[358745403,1745409858635,700.0,0.000438,120]
[358745404,1745409859325,950.99,0.00043836,30]
[358745407,1745409867412,700.0,0.000438,120]
[358745408,1745409875788,700.0,0.0004383,120]
[358745411,1745409881389,765.6,0.00043836,30]
[358745412,1745409884892,700.0,0.0004383,120]
[358745415,1745409899388,500.04,0.00043836,30]
[358745417,1745409908379,700.0,0.0004383,120]
[358745419,1745409916869,564.9553219,0.0004383,120]
[358745420,1745409922163,2011.72,0.00043836,30]
[358745423,1745409969023,500.0,0.00043836,30]
[358745432,1745410049146,26017.74818195,0.00043836,120]
[358745433,1745410084523,17748.0,0.00043835,30]
[358745440,1745410150496,200.0,0.00039374,120]
[358745471,1745410232688,-200.0,0.00021,2]
[358745473,1745410232698,-250.0,0.00023,2]
[358745475,1745410232708,-200.0,0.000231,2]
[358745477,1745410232717,-300.0,0.00025,2]
[358745479,1745410232726,-200.0,0.000251,2]
[358745481,1745410232736,-10493.98605745,0.00026,2]
[358745486,1745410232775,-58821.58934806,0.00026,2]
[358745635,1745410238013,-25674.42389066,0.00026,2]
[358745636,1745410238023,-200.0,0.000261,2]
[358745637,1745410238032,-241.99371459,0.000268,2]
[358745638,1745410238041,-1538.94829675,0.000269,7]
[358745639,1745410238050,-350.0,0.00027,2]
[358745640,1745410238059,-200.0,0.000271,2]
[358745641,1745410238069,-271.33032667,0.00027748,2]
[358745642,1745410238078,-1538.94829666,0.00027969,7]
[358745643,1745410238088,-200.0,0.000281,2]
[358745644,1745410238098,-400.0,0.00029,2]
[358745645,1745410238107,-1538.94829666,0.00029038,8]
[358745646,1745410238117,-200.0,0.000291,2]
[358745647,1745410238127,-1538.94829666,0.00030107,9]
[358745648,1745410238136,-200.0,0.00031,2]
[358745649,1745410238146,-450.0,0.00031,2]
[358745650,1745410238155,-1538.94829666,0.00031176,9]
[358745651,1745410238167,-1538.94829666,0.00032245,10]
[358745652,1745410238177,-500.0,0.00033,2]
[358745653,1745410238186,-1538.94829666,0.00033314,11]
[358745654,1745410238196,-1538.94829666,0.00034383,11]
[358745655,1745410238209,-857.02,0.00034434,2]
[358745656,1745410238218,-176.94,0.00034785,2]
[358745657,1745410238228,-550.0,0.00035,2]
[358745658,1745410238238,-1538.94829666,0.00035452,12]
[358745659,1745410238251,-942.583,0.00036029,2]
[358745660,1745410238262,-3984.0,0.00036029,2]
[358745661,1745410238272,-152.0,0.00036029,2]
[358745662,1745410238284,-870.0,0.00036029,2]
[358745663,1745410238295,-876.0,0.00036029,2]
[358745664,1745410238306,-1538.94829666,0.00036521,13]
[358745665,1745410238315,-857.02,0.00036698,2]
[358745667,1745410238325,-353.77,0.00036942,2]
[358745669,1745410238334,-600.0,0.00037,2]
[358745670,1745410238344,-167.81,0.0003725,2]
[358745672,1745410238355,-1538.94829666,0.0003759,14]
[358745674,1745410238365,-4716.74,0.00037808,2]
[358745676,1745410238374,-4716.74,0.00037808,2]
[358745678,1745410238384,-4716.74,0.00037808,2]
[358745680,1745410238393,-4716.74,0.00037808,2]
[358745682,1745410238403,-4716.74,0.00037808,2]
[358745684,1745410238414,-4716.74,0.00037808,2]
[358745687,1745410238424,-4716.74,0.00037808,2]
[358745691,1745410238434,-4716.74,0.00037808,2]
[358745694,1745410238444,-4716.74,0.00037808,2]
[358745695,1745410238453,-4716.74,0.00037808,2]
[358745697,1745410238463,-4716.74,0.00037808,2]
[358745699,1745410238473,-4716.74,0.00037808,2]
[358745701,1745410238482,-4716.74,0.00037808,2]
[358745703,1745410238491,-4716.74,0.00037808,2]
[358745705,1745410238501,-4716.74,0.00037808,2]
[358745707,1745410238510,-4716.74,0.00037808,2]
[358745709,1745410238519,-4716.74,0.00037808,2]
[358745711,1745410238529,-4716.74,0.00037808,2]
[358745713,1745410238539,-4716.74,0.00037808,2]
[358745715,1745410238548,-4716.89633353,0.00037808,2]
[358745717,1745410238558,-500.0,0.00037873,5]
[358745719,1745410238568,-500.0,0.00037873,5]
[358745721,1745410238578,-503.55173525,0.00037873,5]
[358745723,1745410238587,-500.0,0.00037873,5]
[358745725,1745410238597,-20573.0,0.000386,2]
[358745727,1745410238606,-1538.94829666,0.00038659,14]
[358745729,1745410238615,-857.02,0.00038962,2]
[358745731,1745410238624,-5524.77,0.00039,2]
[358745733,1745410238633,-650.0,0.00039,2]
[358745735,1745410238643,-3984.0,0.00039029,2]
[358745737,1745410238652,-152.0,0.00039029,2]
[358745739,1745410238660,-870.0,0.00039029,2]
[358745741,1745410238671,-876.0,0.00039029,2]
[358745743,1745410238680,-5565.0,0.000392,3]
[358745745,1745410238689,-14036.67,0.0003921,2]
[358745747,1745410238698,-1538.94829666,0.00039728,15]
[358745748,1745410238708,-510.658,0.000398,5]
[358745750,1745410238717,-5565.0,0.000398,5]
[358745753,1745410238727,-2695.0,0.00040663,2]
[358745755,1745410238736,-152.0,0.00040673,3]
[358745756,1745410238746,-1538.94829666,0.00040797,16]
[358745759,1745410238756,-272.38,0.00040949,2]
[358745760,1745410238765,-361.54,0.00040997,2]
[358745762,1745410238775,-700.0,0.00041,2]
[358745764,1745410238784,-200.0,0.0004104,2]
[358745766,1745410238793,-2000.0,0.00041095,2]
[358745769,1745410238803,-500.0,0.00041096,10]
[358745770,1745410238812,-857.02,0.00041226,2]
[358745772,1745410238822,-1000.0,0.00041644,10]
[358745774,1745410238832,-1538.94829666,0.00041866,16]
[358745776,1745410238841,-3984.0,0.00042029,2]
[358745778,1745410238851,-152.0,0.00042029,2]
[358745780,1745410238860,-876.0,0.00042029,2]
[358745782,1745410238869,-200.0,0.00042074,14]
[358745784,1745410238878,-201.05902538,0.00042074,14]
[358745786,1745410238888,-311.97860147,0.00042192,10]
[358745788,1745410238898,-166.66,0.00042212,2]
[358745790,1745410238907,-500.0,0.00042877,2]
[358745792,1745410238916,-1538.94829666,0.00042934,17]
[358745825,1745410239228,-272.38,0.00042997,2]
[358745827,1745410239240,-750.0,0.00043,2]
[358745829,1745410239251,-160.26,0.00043297,2]
[358745831,1745410239260,-1000.0,0.00043352,10]
[358745833,1745410239271,-1000.0,0.00043352,10]
[358745835,1745410239283,-1000.0,0.00043352,10]
[358745837,1745410239295,-152.0,0.00043393,4]
[358745839,1745410239304,-857.02,0.0004349,2]
[358745841,1745410239314,-250.0,0.00043717,2]
[358745843,1745410239324,-1000.0,0.00043789,2]
[358745845,1745410239333,-500.0,0.00043835,14]
[358745847,1745410239343,-258.43952349,0.00043836,2]
[358745849,1745410239352,-700.0,0.00043836,16]
[358745851,1745410239362,-700.0,0.00043836,16]
[358745853,1745410239371,-700.0,0.00043836,16]
[358745855,1745410239382,-700.0,0.00043836,16]
[358745857,1745410239391,-700.0,0.00043836,16]
[358745859,1745410239401,-700.0,0.00043836,16]
[358745861,1745410239411,-700.0,0.00043836,16]
[358745863,1745410239423,-700.0,0.00043836,16]
[358745865,1745410239433,-700.0,0.00043836,16]
[358745867,1745410239443,-700.0,0.00043836,16]
[358745869,1745410239453,-158.1307,0.00043888,30]
[358745871,1745410239462,-1233.71139212,0.00044,2]
[358745873,1745410239472,-1538.94829666,0.00044003,18]
[358745875,1745410239481,-784.3186195,0.00044403,4]
[358745877,1745410239491,-23900.0,0.00044588,2]
[358745879,1745410239501,-500.0,0.00044658,120]
[358745881,1745410239510,-500.0,0.00044658,120]
[358745883,1745410239520,-500.0,0.00044658,120]
[358745885,1745410239529,-500.0,0.00044658,120]
[358745887,1745410239539,-500.0,0.00044658,120]
[358745889,1745410239548,-296.77482412,0.00044658,120]
[358745891,1745410239557,-160.0,0.00045,90]
[358745893,1745410239568,-1828.98834803,0.00045,14]
[358745896,1745410239578,-800.0,0.00045,2]
[358745897,1745410239588,-3984.0,0.00045029,2]
[358745900,1745410239598,-272.38,0.00045044,2]
[358745902,1745410239608,-500.0,0.00045049,7]
[358745903,1745410239618,-1538.94829666,0.00045072,18]
[358745905,1745410239627,-150.0,0.00045128,30]
[358745907,1745410239637,-203.02,0.00045151,2]
[358745909,1745410239646,-457.016,0.00045232,73]
[358745911,1745410239656,-200.0,0.00045232,2]
[358745914,1745410239666,-27130.9535485,0.00045233,4]
[358745915,1745410239676,-2007.27,0.00045243,2]
[358745917,1745410239685,-1150.78,0.00045413,30]
[358745919,1745410239696,-160.26,0.00045494,2]
[358745922,1745410239705,-308.2639,0.00045578,2]
[358745923,1745410239715,-610.0,0.00045678,120]
[358745924,1745410239724,-166.66,0.00045695,2]
[358745925,1745410239733,-857.02,0.00045754,2]
[358745926,1745410239743,-16101.91,0.00045999,2]
[358745927,1745410239752,-8092.82802765,0.00046,120]
[358745928,1745410239761,-152.0,0.00046114,5]
[358745929,1745410239770,-1538.94829666,0.00046141,19]
[358745930,1745410239779,-1975.84737224,0.00046351,18]
[358745931,1745410239788,-150.0,0.00046354,2]
[358745932,1745410239798,-758.1921,0.000464,2]
[358745933,1745410239807,-2363.6972,0.000464,2]
[358745934,1745410239818,-200.0,0.00046451,2]
[358745935,1745410239827,-1333.0,0.00046466,120]
[358745937,1745410239836,-27130.9535485,0.0004649,4]
[358745938,1745410239845,-27999.27995052,0.000465,2]
[358745939,1745410239854,-5000.0,0.0004651,120]
[358745940,1745410239863,-2000.0,0.00046515,3]
[358745941,1745410239872,-2000.0,0.00046515,3]
[358745942,1745410239881,-15968.61396055,0.00046521,2]
[358745961,1745410240100,-3785.52413945,0.00046521,2]
[358745963,1745410240110,-150.0,0.00046539,2]
[358745965,1745410240120,-27130.9535485,0.00046565,4]
[358745967,1745410240129,-3040.5041,0.00046565,2]
[358745969,1745410240139,-343.63718743,0.00046573,10]
[358745971,1745410240148,-255.8998,0.00046574,2]
[358745973,1745410240158,-150.0,0.00046575,120]
[358745975,1745410240170,-150.0,0.00046575,120]
[358745977,1745410240180,-150.0,0.00046575,120]
[358745979,1745410240190,-180.75436399,0.00046575,120]
[358745981,1745410240207,-150.0,0.00046575,120]
[358745983,1745410240219,-150.0,0.00046575,120]
[358745985,1745410240230,-150.0,0.00046575,120]
[358745987,1745410240242,-150.0,0.00046575,120]
[358745989,1745410240252,-150.0,0.00046575,120]
[358745991,1745410240262,-250.0,0.00046575,120]
[358745993,1745410240272,-500.0,0.00046575,120]
[358745995,1745410240282,-500.0,0.00046575,120]
[358745997,1745410240292,-500.0,0.00046575,120]
[358745999,1745410240301,-500.0,0.00046575,120]
[358746001,1745410240311,-181.99114877,0.00046575,120]
[358746003,1745410240320,-150.0,0.00046575,120]
[358746005,1745410240329,-150.0,0.00046575,120]
[358746007,1745410240339,-150.0,0.00046575,120]
[358746009,1745410240348,-150.0,0.00046575,120]
[358746011,1745410240357,-216.81743166,0.00046575,120]
[358746013,1745410240367,-17306.494,0.00046575,2]
[358746015,1745410240376,-225.0,0.00046575,2]
[358746017,1745410240386,-2079.9777,0.00046575,2]
[358746019,1745410240395,-967.947,0.00046575,120]
[358746021,1745410240406,-1474.9382,0.00046575,2]
[358746023,1745410240415,-1000.0,0.00046575,2]
[358746025,1745410240426,-150.0,0.00046575,10]
[358746027,1745410240435,-514.0,0.0004659,2]
[358746029,1745410240444,-150.92,0.00046591,2]
[358746031,1745410240454,-150.0,0.00046592,7]
[358746033,1745410240464,-1207.31,0.000466,2]
[358746035,1745410240473,-200.0,0.000466,67]
[358746037,1745410240483,-81392.8606456,0.000466,4]
[358746039,1745410240492,-150.92,0.000466,2]
[358746041,1745410240502,-150.92,0.000466,2]
[358746043,1745410240511,-150.92,0.000466,2]
[358746045,1745410240521,-150.92,0.000466,2]
[358746047,1745410240530,-150.92,0.000466,2]
[358746049,1745410240539,-150.92,0.000466,2]
[358746051,1745410240549,-150.92,0.000466,2]
[358746053,1745410240558,-150.92,0.000466,2]
[358746055,1745410240568,-150.92,0.000466,2]
[358746057,1745410240578,-150.92,0.00046601,2]
[358746059,1745410240588,-150.92,0.00046601,2]
[358746061,1745410240597,-150.92,0.00046601,2]
[358746063,1745410240606,-150.92,0.00046601,2]
[358746065,1745410240616,-150.0,0.00046609,15]
[358746067,1745410240626,-17205.7775333,0.0004661,4]
[358746069,1745410240635,-271309.535485,0.0004661,4]
[358746071,1745410240645,-258086.662999,0.0004661,4]
[358746073,1745410240654,-108523.814194,0.00046611,4]
[358746075,1745410240663,-120440.442733,0.00046611,4]
[358746077,1745410240675,-150.92,0.00046611,2]
[358746079,1745410240684,-150.92,0.00046611,2]
[358746081,1745410240694,-150.92,0.00046611,2]
[358746083,1745410240704,-236.83846026,0.0004662,2]
[358746085,1745410240714,-3500.0,0.0004662,10]
[358746088,1745410240724,-3269.94,0.0004662,120]
[358746090,1745410240737,-799.0,0.0004662,7]
[358746092,1745410240746,-311.95683,0.00046621,14]
[358746094,1745410240755,-311.95683,0.00046621,14]
[358746096,1745410240765,-311.95683,0.00046621,14]
[358746098,1745410240775,-311.95683,0.00046621,14]
[358746100,1745410240784,-311.95683,0.00046621,14]
[358746102,1745410240794,-311.95683,0.00046621,14]
[358746104,1745410240804,-311.95683,0.00046621,14]
[358746106,1745410240815,-311.95683,0.00046621,14]
[358746108,1745410240824,-311.95683,0.00046621,14]
[358746110,1745410240834,-311.95683,0.00046621,14]
[358746112,1745410240844,-311.95683,0.00046621,14]
[358746114,1745410240853,-311.95683,0.00046621,14]
[358746116,1745410240863,-311.95683,0.00046621,14]
[358746118,1745410240872,-311.95683,0.00046621,14]
[358746120,1745410240883,-311.95683,0.00046621,14]
[358746122,1745410240893,-311.95683,0.00046621,14]
[358746124,1745410240902,-311.95683,0.00046621,14]
[358746126,1745410240913,-311.95683,0.00046621,14]
[358746128,1745410240925,-311.95683,0.00046621,14]
[358746131,1745410240936,-311.956826,0.00046621,14]
[358746132,1745410240949,-187.297207,0.00046621,14]
[358746134,1745410240960,-187.297207,0.00046621,14]
[358746137,1745410240970,-187.297207,0.00046621,14]
[358746139,1745410240981,-187.297207,0.00046621,14]
[358746141,1745410240991,-187.297207,0.00046621,14]
[358746143,1745410241001,-187.297207,0.00046621,14]
[358746145,1745410241011,-187.297207,0.00046621,14]
[358746147,1745410241020,-187.297207,0.00046621,14]
[358746149,1745410241030,-187.297207,0.00046621,14]
[358746151,1745410241039,-187.297207,0.00046621,14]
[358746153,1745410241049,-187.297207,0.00046621,14]
[358746156,1745410241072,-187.297207,0.00046621,14]
[358746158,1745410241082,-187.297207,0.00046621,14]
[358746160,1745410241092,-187.297207,0.00046621,14]
[358746162,1745410241101,-187.297207,0.00046621,14]
[358746164,1745410241111,-187.297207,0.00046621,14]
[358746166,1745410241122,-187.297207,0.00046621,14]
[358746168,1745410241132,-187.297207,0.00046621,14]
[358746170,1745410241142,-187.297207,0.00046621,14]
[358746172,1745410241152,-187.297199,0.00046621,14]
[358746174,1745410241163,-151.0,0.00046621,14]
[358746177,1745410241174,-151.0,0.00046621,14]
[358746179,1745410241186,-151.0,0.00046621,14]
[358746181,1745410241199,-155.624781,0.00046621,14]
[358746183,1745410241209,-151.0,0.00046621,14]
[358746185,1745410241219,-151.0,0.00046621,14]
[358746187,1745410241229,-151.0,0.00046621,14]
[358746189,1745410241241,-151.0,0.00046621,14]
[358746191,1745410241251,-151.0,0.00046621,14]
[358746193,1745410241261,-151.0,0.00046621,14]
[358746195,1745410241271,-151.0,0.00046621,14]
[358746197,1745410241282,-151.0,0.00046621,14]
[358746199,1745410241292,-151.0,0.00046621,14]
[358746201,1745410241301,-151.0,0.00046621,14]
[358746203,1745410241313,-280.006792,0.00046621,14]
[358746205,1745410241323,-151.0,0.00046621,14]
[358746207,1745410241333,-151.0,0.00046621,14]
[358746209,1745410241343,-151.0,0.00046621,14]
[358746211,1745410241354,-263.382092,0.00046621,14]
[358746213,1745410241365,-257.821998,0.00046621,14]
[358746216,1745410241376,-257.821998,0.00046621,14]
[358746218,1745410241386,-257.821998,0.00046621,14]
[358746220,1745410241397,-257.821998,0.00046621,14]
[358746222,1745410241406,-257.821998,0.00046621,14]
[358746224,1745410241416,-257.821998,0.00046621,14]
[358746226,1745410241426,-257.821998,0.00046621,14]
[358746228,1745410241436,-257.821998,0.00046621,14]
[358746230,1745410241446,-257.821998,0.00046621,14]
[358746232,1745410241456,-257.821998,0.00046621,14]
[358746234,1745410241466,-257.821998,0.00046621,14]
[358746236,1745410241476,-257.821998,0.00046621,14]
[358746238,1745410241486,-257.821998,0.00046621,14]
[358746240,1745410241496,-257.821998,0.00046621,14]
[358746243,1745410241512,-257.821998,0.00046621,14]
[358746245,1745410241522,-257.821998,0.00046621,14]
[358746247,1745410241533,-257.821998,0.00046621,14]
[358746249,1745410241544,-257.821998,0.00046621,14]
[358746251,1745410241554,-257.821998,0.00046621,14]
[358746253,1745410241564,-257.82200607,0.00046621,14]
[358746255,1745410241574,-151.0,0.00046621,14]
[358746257,1745410241584,-151.0,0.00046621,14]
[358746259,1745410241594,-151.0,0.00046621,14]
[358746261,1745410241604,-151.0,0.00046621,14]
[358746263,1745410241614,-300.601703,0.00046621,14]
[358746265,1745410241624,-815.843865,0.00046621,14]
[358746267,1745410241635,-815.843865,0.00046621,14]
[358746269,1745410241645,-815.843865,0.00046621,14]
[358746271,1745410241655,-815.843865,0.00046621,14]
[358746274,1745410241672,-815.843865,0.00046621,14]
[358746276,1745410241682,-815.843865,0.00046621,14]
[358746278,1745410241692,-815.843865,0.00046621,14]
[358746280,1745410241702,-815.843865,0.00046621,14]
[358746282,1745410241712,-1000.0,0.00046621,28]
[358746284,1745410241722,-815.843865,0.00046621,14]
[358746286,1745410241732,-1000.0,0.00046621,28]
[358746288,1745410241742,-815.843865,0.00046621,14]
[358746290,1745410241752,-57.99914542,0.00046621,28]
[358746293,1745410241776,-942.00085458,0.00046621,28]
[358746295,1745410241786,-815.843865,0.00046621,14]
[358746297,1745410241795,-815.843865,0.00046621,14]
[358746300,1745410241813,-815.843865,0.00046621,14]
[358746302,1745410241823,-1000.0,0.00046621,28]
[358746304,1745410241833,-815.843865,0.00046621,14]
[358746306,1745410241843,-1000.0,0.00046621,28]
[358746308,1745410241852,-85.77768098,0.00046621,14]
[358746459,1745410243463,-730.06618402,0.00046621,14]
[358746461,1745410243474,-1000.0,0.00046621,28]
[358746463,1745410243484,-815.843865,0.00046621,14]
[358746466,1745410243494,-1000.0,0.00046621,28]
[358746506,1745410243840,-1000.0,0.00046621,28]
[358746508,1745410243850,-1000.0,0.00046621,28]
[358746510,1745410243860,-151.0,0.00046621,14]
[358746512,1745410243871,-1000.0,0.00046621,28]
[358746514,1745410243880,-151.0,0.00046621,14]
[358746516,1745410243890,-1000.0,0.00046621,28]
[358746518,1745410243900,-151.0,0.00046621,14]
[358746520,1745410243910,-1000.0,0.00046621,28]
[358746522,1745410243921,-151.0,0.00046621,14]
[358746524,1745410243932,-1000.0,0.00046621,28]
[358746526,1745410243942,-151.0,0.00046621,14]
[358746528,1745410243951,-1000.0,0.00046621,28]
[358746530,1745410243961,-151.0,0.00046621,14]
[358746532,1745410243971,-1000.0,0.00046621,28]
[358746534,1745410243982,-151.0,0.00046621,14]
[358746536,1745410243992,-1000.0,0.00046621,28]
[358746538,1745410244002,-1000.0,0.00046621,28]
[358746541,1745410244016,-166.76334,0.00046621,14]
[358746543,1745410244026,-1000.0,0.00046621,28]
[358746545,1745410244037,-1000.0,0.00046621,28]
[358746547,1745410244047,-1000.0,0.00046621,28]
[358746549,1745410244057,-1000.0,0.00046621,28]
[358746551,1745410244067,-1000.0,0.00046621,28]
[358746553,1745410244076,-614.43345477,0.00046621,28]
[358746760,1745410246119,-627.4548956,0.00044403,4]
[358746761,1745410246132,-385.56654523,0.00046621,28]
[358746762,1745410246143,-1000.0,0.00046621,28]
[358746763,1745410246153,-1000.0,0.00046621,28]
[358746764,1745410246163,-1000.0,0.00046621,28]
[358746765,1745410246172,-1000.0,0.00046621,28]
[358746766,1745410246182,-1000.0,0.00046621,28]
[358746767,1745410246192,-750.77855917,0.00046621,28]
[358747306,1745410296769,167.328432,0.00041643,60]
[358747325,1745410464250,1000.0,0.00043266,120]
[358747327,1745410490458,1786.0,0.000438,31]
[358747329,1745410535299,1000.0,0.000425,120]
[358747331,1745410548359,1000.0,0.000425,120]
[358747340,1745410632136,1795.31087763,0.00042658,60]
[358747347,1745410709617,457.016,0.00041486,61]
[358747354,1745410806347,192.01,0.00040362,30]
[358747359,1745411036478,500.0,0.000438,30]
[358747360,1745411043702,250.0,0.00043835,30]
[358747361,1745411069146,250.0,0.00043836,30]
[358747362,1745411069510,2845.21656936,0.00037,60]
[358747363,1745411079502,250.0,0.00043836,30]
[358747364,1745411087812,250.0,0.00043836,30]
[358747365,1745411095280,250.0,0.00043835,30]
[358747366,1745411106650,250.0,0.00043836,30]
[358747367,1745411109034,-200.0,0.0002,2]
[358747369,1745411113367,-157.98264617,0.0002,2]
[358747370,1745411118566,-186.50630611,0.0002,2]
[358747371,1745411119362,250.0,0.00043836,30]